[Event "Titled Tuesday Blitz August 22 Late 2023"]
[White "Vaglio Munoz, Jaime"]
[Black "only_strong_moves"]
[WhiteFideId "6500145"]
[WhiteElo "2298"]
[BlackElo "2503"]
[Result "0-1"]
[Round "2"]
[TimeControl "180+1"]
[Date "2023.08.22"]
[WhiteClock "0:00:07"]
[BlackClock "0:00:04"]
[Board "172"]

1. e4 {[%clk 0:03:00]}  e6 {[%clk 0:03:00]} 2. b3 {[%clk 0:03:00]}  d5 {[%clk 0:02:58]} 3. Bb2 {[%clk 0:03:00]}  Nc6 {[%clk 0:02:51]} 4. e5 {[%clk 0:02:58]}  d4 {[%clk 0:02:40]} 5. f4 {[%clk 0:02:55]}  Nce7 {[%clk 0:02:08]} 6. Nf3 {[%clk 0:02:54]}  c5 {[%clk 0:02:08]} 7. a4 {[%clk 0:02:53]}  Nd5 {[%clk 0:02:04]} 8. g3 {[%clk 0:02:52]}  Bd7 {[%clk 0:02:04]} 9. Na3 {[%clk 0:02:51]}  Bc6 {[%clk 0:02:03]} 10. Nc4 {[%clk 0:02:51]}  h5 {[%clk 0:01:52]} 11. Bg2 {[%clk 0:02:49]}  h4 {[%clk 0:01:52]} 12. Nxh4 {[%clk 0:02:48]}  Rxh4 {[%clk 0:01:52]} 13. gxh4 {[%clk 0:02:45]}  Qxh4+ {[%clk 0:01:52]} 14. Kf1 {[%clk 0:02:45]}  Qxf4+ {[%clk 0:01:42]} 15. Kg1 {[%clk 0:02:39]}  Qg5 {[%clk 0:01:35]} 16. h4 {[%clk 0:02:21]}  Qg6 {[%clk 0:01:31]} 17. Kh2 {[%clk 0:02:02]}  O-O-O {[%clk 0:01:18]} 18. Na5 {[%clk 0:01:56]}  Ne3 {[%clk 0:01:11]} 19. Qe2 {[%clk 0:01:37]}  Qxg2+ {[%clk 0:00:39]} 20. Qxg2 {[%clk 0:01:36]}  Bxg2 {[%clk 0:00:40]} 21. Rhg1 {[%clk 0:01:31]}  Nxc2 {[%clk 0:00:40]} 22. Rxg2 {[%clk 0:01:27]}  Nxa1 {[%clk 0:00:40]} 23. Bxa1 {[%clk 0:01:28]}  Ne7 {[%clk 0:00:38]} 24. Nc4 {[%clk 0:01:27]}  Nf5 {[%clk 0:00:35]} 25. Kh3 {[%clk 0:01:26]}  g6 {[%clk 0:00:34]} 26. Bb2 {[%clk 0:01:24]}  Be7 {[%clk 0:00:34]} 27. Rg4 {[%clk 0:01:11]}  Rh8 {[%clk 0:00:34]} 28. b4 {[%clk 0:00:55]}  b6 {[%clk 0:00:34]} 29. a5 {[%clk 0:00:53]}  Kc7 {[%clk 0:00:32]} 30. axb6+ {[%clk 0:00:53]}  axb6 {[%clk 0:00:33]} 31. bxc5 {[%clk 0:00:53]}  bxc5 {[%clk 0:00:34]} 32. d3 {[%clk 0:00:52]}  Nxh4 {[%clk 0:00:32]} 33. Bc1 {[%clk 0:00:47]}  Nf5+ {[%clk 0:00:24]} 34. Kg2 {[%clk 0:00:44]}  Ra8 {[%clk 0:00:22]} 35. Kf3 {[%clk 0:00:41]}  Ra1 {[%clk 0:00:21]} 36. Bf4 {[%clk 0:00:40]}  Rf1+ {[%clk 0:00:20]} 37. Ke2 {[%clk 0:00:40]}  Rh1 {[%clk 0:00:19]} 38. Rg2 {[%clk 0:00:35]}  Nh4 {[%clk 0:00:18]} 39. Rf2 {[%clk 0:00:35]}  Nf5 {[%clk 0:00:18]} 40. Rg2 {[%clk 0:00:35]}  Rh4 {[%clk 0:00:18]} 41. Bd2 {[%clk 0:00:32]}  Rh8 {[%clk 0:00:19]} 42. Rg1 {[%clk 0:00:32]}  Ra8 {[%clk 0:00:18]} 43. Rb1 {[%clk 0:00:31]}  Ra2 {[%clk 0:00:18]} 44. Ke1 {[%clk 0:00:30]}  Bh4+ {[%clk 0:00:18]} 45. Kd1 {[%clk 0:00:29]}  Bg3 {[%clk 0:00:16]} 46. Ba5+ {[%clk 0:00:29]}  Kc6 {[%clk 0:00:13]} 47. Rb6+ {[%clk 0:00:28]}  Kd5 {[%clk 0:00:11]} 48. Bd2 {[%clk 0:00:25]}  Ra1+ {[%clk 0:00:08]} 49. Kc2 {[%clk 0:00:24]}  Ra2+ {[%clk 0:00:07]} 50. Kb3 {[%clk 0:00:24]}  Ra7 {[%clk 0:00:05]} 51. Rb8 {[%clk 0:00:21]}  Bxe5 {[%clk 0:00:05]} 52. Rd8+ {[%clk 0:00:21]}  Bd6 {[%clk 0:00:05]} 53. Bf4 {[%clk 0:00:20]}  Ra6 {[%clk 0:00:05]} 54. Kc2 {[%clk 0:00:15]}  g5 {[%clk 0:00:06]} 55. Bh2 {[%clk 0:00:14]}  g4 {[%clk 0:00:06]} 56. Bf4 {[%clk 0:00:13]}  g3 {[%clk 0:00:06]} 57. Rg8 {[%clk 0:00:13]}  g2 {[%clk 0:00:05]} 58. Bxd6 {[%clk 0:00:12]}  Nxd6 {[%clk 0:00:05]} 59. Nd2 {[%clk 0:00:09]}  Ra2+ {[%clk 0:00:05]} 60. Kd1 {[%clk 0:00:09]}  g1=Q+ {[%clk 0:00:05]} 61. Ke2 {[%clk 0:00:09]}  Qxg8 {[%clk 0:00:04]} 62. Kf3 {[%clk 0:00:07]}  Rxd2 {[%clk 0:00:03]} 63. Kf4 {[%clk 0:00:07]}  e5+ {[%clk 0:00:03]} 64. Kf3 {[%clk 0:00:07]}  Rxd3+ {[%clk 0:00:04]} 65. Ke2 {[%clk 0:00:07]}  Qg2+ {[%clk 0:00:04]} 66. Kxd3 {[%clk 0:00:07]}  c4# {[%clk 0:00:04]} 0-1


[Site "https://www.chess.com"]

[Event "Titled Tuesday Blitz August 22 Late 2023"]
[White "Hoffmann, Asa"]
[Black "Glavina, Pablo"]
[WhiteFideId "2001470"]
[BlackFideId "100234"]
[WhiteElo "2296"]
[BlackElo "2501"]
[Result "0-1"]
[Round "2"]
[TimeControl "180+1"]
[Date "2023.08.22"]
[WhiteClock "0:01:27"]
[BlackClock "0:01:34"]
[Board "173"]

1. d4 {[%clk 0:02:56]}  Nf6 {[%clk 0:02:59]} 2. Bg5 {[%clk 0:02:56]}  c5 {[%clk 0:02:58]} 3. d5 {[%clk 0:02:55]}  d6 {[%clk 0:02:58]} 4. Nc3 {[%clk 0:02:54]}  g6 {[%clk 0:02:58]} 5. e4 {[%clk 0:02:53]}  Bg7 {[%clk 0:02:59]} 6. f3 {[%clk 0:02:53]}  O-O {[%clk 0:02:59]} 7. Qd2 {[%clk 0:02:53]}  e6 {[%clk 0:02:51]} 8. dxe6 {[%clk 0:02:50]}  Bxe6 {[%clk 0:02:50]} 9. O-O-O {[%clk 0:02:49]}  Nc6 {[%clk 0:02:49]} 10. Bh6 {[%clk 0:02:44]}  Qa5 {[%clk 0:02:44]} 11. a3 {[%clk 0:02:40]}  Rab8 {[%clk 0:02:33]} 12. h4 {[%clk 0:02:36]}  b5 {[%clk 0:02:32]} 13. h5 {[%clk 0:02:36]}  b4 {[%clk 0:02:32]} 14. axb4 {[%clk 0:02:28]}  Qa1+ {[%clk 0:02:30]} 15. Nb1 {[%clk 0:02:28]}  Ba2 {[%clk 0:02:02]} 16. Qg5 {[%clk 0:02:14]}  Qxb1+ {[%clk 0:02:00]} 17. Kd2 {[%clk 0:02:13]}  Qxb2 {[%clk 0:01:59]} 18. Bxg7 {[%clk 0:02:05]}  Kxg7 {[%clk 0:01:58]} 19. hxg6 {[%clk 0:02:01]}  fxg6 {[%clk 0:01:58]} 20. Qh6+ {[%clk 0:02:01]}  Kg8 {[%clk 0:01:57]} 21. Nh3 {[%clk 0:01:58]}  Nxb4 {[%clk 0:01:47]} 22. Bd3 {[%clk 0:01:51]}  Nxd3 {[%clk 0:01:46]} 23. Kxd3 {[%clk 0:01:51]}  Bc4+ {[%clk 0:01:40]} 24. Ke3 {[%clk 0:01:39]}  Qc3+ {[%clk 0:01:39]} 25. Rd3 {[%clk 0:01:38]}  Bxd3 {[%clk 0:01:38]} 26. cxd3 {[%clk 0:01:38]}  Ng4+ {[%clk 0:01:35]} 27. fxg4 {[%clk 0:01:27]}  Qd4+ {[%clk 0:01:34]} 0-1


[Site "https://www.chess.com"]

[Event "Titled Tuesday Blitz August 22 Late 2023"]
[White "Bilan, Danila"]
[Black "Fominykh, Maria"]
[WhiteFideId "24161918"]
[BlackFideId "4142411"]
[WhiteElo "2500"]
[BlackElo "2296"]
[Result "0-1"]
[Round "2"]
[TimeControl "180+1"]
[Date "2023.08.22"]
[WhiteClock "0:00:07"]
[BlackClock "0:00:09"]
[Board "174"]

1. d4 {[%clk 0:03:00]}  Nf6 {[%clk 0:02:59]} 2. Nf3 {[%clk 0:03:00]}  g6 {[%clk 0:03:00]} 3. Bg5 {[%clk 0:02:59]}  Bg7 {[%clk 0:03:00]} 4. c3 {[%clk 0:02:58]}  d6 {[%clk 0:02:59]} 5. Nbd2 {[%clk 0:02:58]}  Nbd7 {[%clk 0:02:59]} 6. e4 {[%clk 0:02:58]}  h6 {[%clk 0:02:59]} 7. Bh4 {[%clk 0:02:58]}  e5 {[%clk 0:02:56]} 8. Bc4 {[%clk 0:02:53]}  O-O {[%clk 0:02:55]} 9. O-O {[%clk 0:02:52]}  a6 {[%clk 0:02:53]} 10. a4 {[%clk 0:02:51]}  b6 {[%clk 0:02:53]} 11. Qc2 {[%clk 0:02:35]}  Bb7 {[%clk 0:02:53]} 12. Rfe1 {[%clk 0:02:34]}  Qe8 {[%clk 0:02:50]} 13. Rad1 {[%clk 0:02:31]}  Nh5 {[%clk 0:02:50]} 14. Bd5 {[%clk 0:02:18]}  c6 {[%clk 0:02:47]} 15. Ba2 {[%clk 0:02:15]}  b5 {[%clk 0:02:46]} 16. Nb3 {[%clk 0:02:07]}  Rc8 {[%clk 0:02:23]} 17. Na5 {[%clk 0:01:57]}  Ba8 {[%clk 0:02:22]} 18. dxe5 {[%clk 0:01:31]}  dxe5 {[%clk 0:02:18]} 19. Rd6 {[%clk 0:01:27]}  Kh7 {[%clk 0:02:06]} 20. Red1 {[%clk 0:01:21]}  Ndf6 {[%clk 0:01:46]} 21. axb5 {[%clk 0:01:03]}  cxb5 {[%clk 0:01:31]} 22. Bd5 {[%clk 0:00:51]}  Nxd5 {[%clk 0:00:49]} 23. exd5 {[%clk 0:00:51]}  e4 {[%clk 0:00:50]} 24. Re1 {[%clk 0:00:36]}  exf3 {[%clk 0:00:24]} 25. Rxe8 {[%clk 0:00:34]}  Rfxe8 {[%clk 0:00:25]} 26. gxf3 {[%clk 0:00:31]}  Re1+ {[%clk 0:00:16]} 27. Kg2 {[%clk 0:00:31]}  Nf4+ {[%clk 0:00:15]} 28. Kg3 {[%clk 0:00:18]}  Be5 {[%clk 0:00:16]} 29. Kg4 {[%clk 0:00:15]}  f5+ {[%clk 0:00:09]} 30. Qxf5 {[%clk 0:00:08]}  gxf5+ {[%clk 0:00:09]} 31. Kxf5 {[%clk 0:00:07]}  Bxd6 {[%clk 0:00:09]} 0-1


[Site "https://www.chess.com"]

[Event "Titled Tuesday Blitz August 22 Late 2023"]
[White "Mickiewicz, Piotr"]
[Black "Filip, Andrei"]
[WhiteFideId "1114891"]
[BlackFideId "1249452"]
[WhiteElo "2496"]
[BlackElo "2285"]
[Result "0-1"]
[Round "2"]
[TimeControl "180+1"]
[Date "2023.08.22"]
[WhiteClock "0:01:42"]
[BlackClock "0:00:57"]
[Board "176"]

1. c4 {[%clk 0:03:00]}  e5 {[%clk 0:02:58]} 2. g3 {[%clk 0:02:59]}  Nf6 {[%clk 0:02:56]} 3. Bg2 {[%clk 0:02:58]}  c6 {[%clk 0:02:56]} 4. Nf3 {[%clk 0:02:58]}  e4 {[%clk 0:02:54]} 5. Nd4 {[%clk 0:02:58]}  d5 {[%clk 0:02:53]} 6. cxd5 {[%clk 0:02:58]}  cxd5 {[%clk 0:02:52]} 7. O-O {[%clk 0:02:56]}  Nc6 {[%clk 0:02:51]} 8. Nxc6 {[%clk 0:02:56]}  bxc6 {[%clk 0:02:47]} 9. d3 {[%clk 0:02:57]}  exd3 {[%clk 0:02:45]} 10. Qxd3 {[%clk 0:02:56]}  Be7 {[%clk 0:02:44]} 11. b3 {[%clk 0:02:55]}  O-O {[%clk 0:02:43]} 12. Bb2 {[%clk 0:02:55]}  a5 {[%clk 0:02:39]} 13. Qc2 {[%clk 0:02:51]}  Qb6 {[%clk 0:02:34]} 14. Nd2 {[%clk 0:02:49]}  Ba6 {[%clk 0:02:33]} 15. Rfe1 {[%clk 0:02:48]}  Rfe8 {[%clk 0:02:31]} 16. e3 {[%clk 0:02:47]}  Rac8 {[%clk 0:02:24]} 17. Rac1 {[%clk 0:02:44]}  c5 {[%clk 0:02:10]} 18. Bxf6 {[%clk 0:02:42]}  Bxf6 {[%clk 0:02:10]} 19. Bxd5 {[%clk 0:02:41]}  Red8 {[%clk 0:02:10]} 20. Nc4 {[%clk 0:02:38]}  Qb4 {[%clk 0:01:59]} 21. Red1 {[%clk 0:02:35]}  Bxc4 {[%clk 0:01:51]} 22. Bxc4 {[%clk 0:02:34]}  g6 {[%clk 0:01:44]} 23. Qe4 {[%clk 0:02:29]}  Kg7 {[%clk 0:01:39]} 24. h4 {[%clk 0:02:23]}  Qa3 {[%clk 0:01:22]} 25. Rxd8 {[%clk 0:02:18]}  Qxc1+ {[%clk 0:01:20]} 26. Kg2 {[%clk 0:02:16]}  Rxd8 {[%clk 0:01:19]} 27. Qb7 {[%clk 0:02:14]}  Rf8 {[%clk 0:01:18]} 28. h5 {[%clk 0:02:11]}  Qb2 {[%clk 0:01:08]} 29. Qc7 {[%clk 0:02:07]}  gxh5 {[%clk 0:01:03]} 30. Qxc5 {[%clk 0:02:04]}  Qe5 {[%clk 0:01:03]} 31. Qc6 {[%clk 0:02:01]}  Re8 {[%clk 0:00:57]} 32. a4 {[%clk 0:01:47]}  Qe4+ {[%clk 0:00:56]} 33. Qxe4 {[%clk 0:01:42]}  Rxe4 {[%clk 0:00:57]} 0-1


[Site "https://www.chess.com"]

[Event "Titled Tuesday Blitz August 22 Late 2023"]
[White "Rizzo, Tobias"]
[Black "Cardozo Munar, Carlos Eduardo"]
[WhiteFideId "30942691"]
[BlackFideId "4409477"]
[WhiteElo "2492"]
[BlackElo "2279"]
[Result "1-0"]
[Round "2"]
[TimeControl "180+1"]
[Date "2023.08.22"]
[WhiteClock "0:00:12"]
[BlackClock "0:00:12"]
[Board "178"]

1. d4 {[%clk 0:03:00]}  d5 {[%clk 0:02:53]} 2. Bf4 {[%clk 0:02:58]}  e6 {[%clk 0:02:47]} 3. Nf3 {[%clk 0:02:56]}  Bd6 {[%clk 0:02:48]} 4. Ne5 {[%clk 0:02:55]}  Nf6 {[%clk 0:02:40]} 5. e3 {[%clk 0:02:55]}  Nbd7 {[%clk 0:02:40]} 6. Bg3 {[%clk 0:02:51]}  h5 {[%clk 0:02:39]} 7. f4 {[%clk 0:02:44]}  Ne4 {[%clk 0:02:36]} 8. Bd3 {[%clk 0:02:41]}  h4 {[%clk 0:02:36]} 9. Bf2 {[%clk 0:02:36]}  Nxf2 {[%clk 0:02:36]} 10. Kxf2 {[%clk 0:02:37]}  Nf6 {[%clk 0:02:14]} 11. Nd2 {[%clk 0:02:33]}  Bd7 {[%clk 0:02:13]} 12. c3 {[%clk 0:02:18]}  Qe7 {[%clk 0:02:14]} 13. Qc2 {[%clk 0:02:17]}  Bxe5 {[%clk 0:02:08]} 14. dxe5 {[%clk 0:02:15]}  Ng4+ {[%clk 0:02:09]} 15. Kf3 {[%clk 0:01:58]}  h3 {[%clk 0:01:26]} 16. g3 {[%clk 0:01:47]}  f5 {[%clk 0:01:05]} 17. exf6 {[%clk 0:01:35]}  Nxf6 {[%clk 0:01:05]} 18. Bg6+ {[%clk 0:01:35]}  Kd8 {[%clk 0:01:05]} 19. Rae1 {[%clk 0:01:29]}  Bc6 {[%clk 0:01:04]} 20. Ke2 {[%clk 0:01:22]}  Kd7 {[%clk 0:01:04]} 21. Nf3 {[%clk 0:01:18]}  Raf8 {[%clk 0:01:02]} 22. Kd1 {[%clk 0:01:10]}  Qc5 {[%clk 0:00:54]} 23. Rhf1 {[%clk 0:01:04]}  Kc8 {[%clk 0:00:52]} 24. Nd4 {[%clk 0:01:03]}  Bd7 {[%clk 0:00:45]} 25. Kc1 {[%clk 0:00:57]}  Rh6 {[%clk 0:00:45]} 26. Bd3 {[%clk 0:00:56]}  Re8 {[%clk 0:00:39]} 27. Nf3 {[%clk 0:00:46]}  Ng4 {[%clk 0:00:39]} 28. Qd2 {[%clk 0:00:30]}  Kb8 {[%clk 0:00:31]} 29. e4 {[%clk 0:00:30]}  e5 {[%clk 0:00:19]} 30. exd5 {[%clk 0:00:29]}  Qxd5 {[%clk 0:00:09]} 31. Be4 {[%clk 0:00:20]}  Qxd2+ {[%clk 0:00:09]} 32. Kxd2 {[%clk 0:00:16]}  exf4 {[%clk 0:00:10]} 33. gxf4 {[%clk 0:00:16]}  Rhe6 {[%clk 0:00:09]} 34. Bd5 {[%clk 0:00:10]}  Rxe1 {[%clk 0:00:10]} 35. Rxe1 {[%clk 0:00:10]}  Rxe1 {[%clk 0:00:09]} 36. Kxe1 {[%clk 0:00:11]}  Ne3 {[%clk 0:00:08]} 37. Bb3 {[%clk 0:00:06]}  c6 {[%clk 0:00:08]} 38. Ne5 {[%clk 0:00:04]}  Bf5 {[%clk 0:00:07]} 39. Kf2 {[%clk 0:00:03]}  Ng4+ {[%clk 0:00:07]} 40. Nxg4 {[%clk 0:00:03]}  Bxg4 {[%clk 0:00:07]} 41. Kg3 {[%clk 0:00:03]}  Bf5 {[%clk 0:00:07]} 42. Bc4 {[%clk 0:00:03]}  Kc7 {[%clk 0:00:07]} 43. Be2 {[%clk 0:00:02]}  c5 {[%clk 0:00:05]} 44. Bg4 {[%clk 0:00:03]}  Bb1 {[%clk 0:00:05]} 45. a3 {[%clk 0:00:03]}  b5 {[%clk 0:00:05]} 46. Bxh3 {[%clk 0:00:03]}  a5 {[%clk 0:00:05]} 47. Be6 {[%clk 0:00:03]}  b4 {[%clk 0:00:06]} 48. axb4 {[%clk 0:00:03]}  axb4 {[%clk 0:00:06]} 49. cxb4 {[%clk 0:00:04]}  cxb4 {[%clk 0:00:06]} 50. Bb3 {[%clk 0:00:05]}  Kd6 {[%clk 0:00:06]} 51. Kg4 {[%clk 0:00:05]}  Ke7 {[%clk 0:00:06]} 52. Kg5 {[%clk 0:00:06]}  Kd6 {[%clk 0:00:05]} 53. h4 {[%clk 0:00:06]}  Kc5 {[%clk 0:00:06]} 54. f5 {[%clk 0:00:06]}  Kd4 {[%clk 0:00:06]} 55. h5 {[%clk 0:00:05]}  Ke3 {[%clk 0:00:06]} 56. f6 {[%clk 0:00:04]}  gxf6+ {[%clk 0:00:06]} 57. Kxf6 {[%clk 0:00:05]}  Kd2 {[%clk 0:00:06]} 58. Bd5 {[%clk 0:00:04]}  b3 {[%clk 0:00:05]} 59. Bxb3 {[%clk 0:00:04]}  Kc1 {[%clk 0:00:05]} 60. Ba2 {[%clk 0:00:05]}  Bc2 {[%clk 0:00:04]} 61. b4 {[%clk 0:00:04]}  Kb2 {[%clk 0:00:05]} 62. Be6 {[%clk 0:00:03]}  Kc3 {[%clk 0:00:05]} 63. Bf5 {[%clk 0:00:02]}  Bb3 {[%clk 0:00:04]} 64. h6 {[%clk 0:00:03]}  Bg8 {[%clk 0:00:04]} 65. b5 {[%clk 0:00:03]}  Kc4 {[%clk 0:00:04]} 66. b6 {[%clk 0:00:03]}  Kc5 {[%clk 0:00:05]} 67. b7 {[%clk 0:00:04]}  Bd5 {[%clk 0:00:04]} 68. b8=Q {[%clk 0:00:05]}  Kd4 {[%clk 0:00:04]} 69. Qe5+ {[%clk 0:00:05]}  Kc4 {[%clk 0:00:05]} 70. Qxd5+ {[%clk 0:00:06]}  Kxd5 {[%clk 0:00:06]} 71. h7 {[%clk 0:00:07]}  Kc5 {[%clk 0:00:07]} 72. h8=Q {[%clk 0:00:08]}  Kc4 {[%clk 0:00:07]} 73. Qd8 {[%clk 0:00:08]}  Kc3 {[%clk 0:00:08]} 74. Qd5 {[%clk 0:00:09]}  Kb4 {[%clk 0:00:09]} 75. Qc6 {[%clk 0:00:09]}  Kb3 {[%clk 0:00:09]} 76. Qc5 {[%clk 0:00:10]}  Ka4 {[%clk 0:00:10]} 77. Qb6 {[%clk 0:00:09]}  Ka3 {[%clk 0:00:10]} 78. Qb5 {[%clk 0:00:09]}  Ka2 {[%clk 0:00:11]} 79. Qb4 {[%clk 0:00:09]}  Ka1 {[%clk 0:00:12]} 80. Ke5 {[%clk 0:00:09]}  Ka2 {[%clk 0:00:11]} 81. Kd4 {[%clk 0:00:10]}  Ka1 {[%clk 0:00:12]} 82. Kc3 {[%clk 0:00:11]}  Ka2 {[%clk 0:00:12]} 83. Qb2# {[%clk 0:00:12]} 1-0


[Site "https://www.chess.com"]

[Event "Titled Tuesday Blitz August 22 Late 2023"]
[White "drdaro"]
[Black "Michalczak, Thomas"]
[BlackFideId "4622634"]
[WhiteElo "2270"]
[BlackElo "2487"]
[Result "0-1"]
[Round "2"]
[TimeControl "180+1"]
[Date "2023.08.22"]
[WhiteClock "0:00:35"]
[BlackClock "0:01:05"]
[Board "181"]

1. c4 {[%clk 0:02:59]}  e5 {[%clk 0:02:59]} 2. e3 {[%clk 0:02:59]}  Nf6 {[%clk 0:02:58]} 3. Nc3 {[%clk 0:02:59]}  c6 {[%clk 0:02:55]} 4. b3 {[%clk 0:02:58]}  d5 {[%clk 0:02:55]} 5. cxd5 {[%clk 0:02:53]}  cxd5 {[%clk 0:02:56]} 6. d4 {[%clk 0:02:51]}  e4 {[%clk 0:02:53]} 7. Bb5+ {[%clk 0:02:41]}  Bd7 {[%clk 0:02:52]} 8. Bxd7+ {[%clk 0:02:38]}  Nbxd7 {[%clk 0:02:52]} 9. Nge2 {[%clk 0:02:39]}  Bd6 {[%clk 0:02:51]} 10. Nb5 {[%clk 0:02:38]}  Qa5+ {[%clk 0:02:27]} 11. Nbc3 {[%clk 0:02:20]}  Rc8 {[%clk 0:02:21]} 12. Bd2 {[%clk 0:02:07]}  Qd8 {[%clk 0:02:21]} 13. Rc1 {[%clk 0:02:02]}  O-O {[%clk 0:02:20]} 14. Nb5 {[%clk 0:02:02]}  Bb8 {[%clk 0:02:17]} 15. Bb4 {[%clk 0:01:56]}  Re8 {[%clk 0:02:16]} 16. Nd6 {[%clk 0:01:55]}  Bxd6 {[%clk 0:02:16]} 17. Bxd6 {[%clk 0:01:56]}  Qa5+ {[%clk 0:02:11]} 18. Qd2 {[%clk 0:01:52]}  Rxc1+ {[%clk 0:02:09]} 19. Nxc1 {[%clk 0:01:53]}  Qa6 {[%clk 0:02:07]} 20. Bb4 {[%clk 0:01:44]}  Rc8 {[%clk 0:02:06]} 21. Ne2 {[%clk 0:01:31]}  Qd3 {[%clk 0:01:45]} 22. Nc3 {[%clk 0:01:03]}  b6 {[%clk 0:01:26]} 23. Qxd3 {[%clk 0:01:01]}  exd3 {[%clk 0:01:27]} 24. Kd2 {[%clk 0:01:01]}  a5 {[%clk 0:01:27]} 25. Ba3 {[%clk 0:01:01]}  Ne4+ {[%clk 0:01:27]} 26. Nxe4 {[%clk 0:01:00]}  dxe4 {[%clk 0:01:27]} 27. f3 {[%clk 0:00:51]}  Rc2+ {[%clk 0:01:24]} 28. Kd1 {[%clk 0:00:49]}  Rxa2 {[%clk 0:01:22]} 29. Bc1 {[%clk 0:00:35]}  Nf6 {[%clk 0:01:05]} 0-1


[Site "https://www.chess.com"]

[Event "Titled Tuesday Blitz August 22 Late 2023"]
[White "Sivakumar, Shaashwath"]
[Black "Magallanes, Rey Jomar"]
[WhiteFideId "30912156"]
[BlackFideId "5205948"]
[WhiteElo "2476"]
[BlackElo "2253"]
[Result "1-0"]
[Round "2"]
[TimeControl "180+1"]
[Date "2023.08.22"]
[WhiteClock "0:00:07"]
[BlackClock "0:00:47"]
[Board "186"]

1. d4 {[%clk 0:03:00]}  d5 {[%clk 0:02:59]} 2. c4 {[%clk 0:03:00]}  e5 {[%clk 0:02:59]} 3. dxe5 {[%clk 0:03:00]}  d4 {[%clk 0:02:59]} 4. Nf3 {[%clk 0:02:59]}  Nc6 {[%clk 0:02:58]} 5. a3 {[%clk 0:02:59]}  Bg4 {[%clk 0:02:54]} 6. Nbd2 {[%clk 0:02:50]}  Nge7 {[%clk 0:02:53]} 7. b4 {[%clk 0:02:50]}  a6 {[%clk 0:02:52]} 8. Bb2 {[%clk 0:02:50]}  Ng6 {[%clk 0:02:52]} 9. Qa4 {[%clk 0:02:35]}  Be7 {[%clk 0:02:45]} 10. Nxd4 {[%clk 0:02:27]}  Nxe5 {[%clk 0:02:41]} 11. Nxc6 {[%clk 0:02:22]}  Nxc6 {[%clk 0:02:42]} 12. O-O-O {[%clk 0:02:13]}  Bg5 {[%clk 0:02:32]} 13. h3 {[%clk 0:01:47]}  Bh5 {[%clk 0:02:29]} 14. g4 {[%clk 0:01:24]}  Bg6 {[%clk 0:02:28]} 15. h4 {[%clk 0:01:03]}  Bxh4 {[%clk 0:02:18]} 16. Nf3 {[%clk 0:01:03]}  Bg5+ {[%clk 0:02:18]} 17. e3 {[%clk 0:01:02]}  Qe7 {[%clk 0:02:17]} 18. Nxg5 {[%clk 0:00:54]}  Qxg5 {[%clk 0:02:18]} 19. Bd3 {[%clk 0:00:52]}  O-O {[%clk 0:02:05]} 20. Bxg6 {[%clk 0:00:51]}  Qxg6 {[%clk 0:02:06]} 21. Qc2 {[%clk 0:00:43]}  Qxc2+ {[%clk 0:02:04]} 22. Kxc2 {[%clk 0:00:43]}  Rad8 {[%clk 0:02:02]} 23. g5 {[%clk 0:00:39]}  Rfe8 {[%clk 0:01:55]} 24. Rdg1 {[%clk 0:00:27]}  Rd6 {[%clk 0:01:52]} 25. Rh4 {[%clk 0:00:23]}  Red8 {[%clk 0:01:18]} 26. Rgh1 {[%clk 0:00:20]}  Rd2+ {[%clk 0:01:17]} 27. Kc1 {[%clk 0:00:17]}  Rxf2 {[%clk 0:01:13]} 28. Rxh7 {[%clk 0:00:16]}  Kf8 {[%clk 0:01:13]} 29. Bxg7+ {[%clk 0:00:15]}  Ke8 {[%clk 0:01:10]} 30. Rh8+ {[%clk 0:00:12]}  Kd7 {[%clk 0:01:10]} 31. Rd1+ {[%clk 0:00:11]}  Kc8 {[%clk 0:00:49]} 32. Rdxd8+ {[%clk 0:00:11]}  Nxd8 {[%clk 0:00:49]} 33. Bf6 {[%clk 0:00:11]}  Rxf6 {[%clk 0:00:50]} 34. gxf6 {[%clk 0:00:12]}  Kd7 {[%clk 0:00:50]} 35. Kd2 {[%clk 0:00:08]}  Nc6 {[%clk 0:00:49]} 36. Kd3 {[%clk 0:00:06]}  Ke6 {[%clk 0:00:49]} 37. Rc8 {[%clk 0:00:06]}  Kxf6 {[%clk 0:00:45]} 38. Rxc7 {[%clk 0:00:06]}  Ne5+ {[%clk 0:00:46]} 39. Kc3 {[%clk 0:00:06]}  b6 {[%clk 0:00:44]} 40. Rb7 {[%clk 0:00:05]}  b5 {[%clk 0:00:41]} 41. c5 {[%clk 0:00:06]}  Ke6 {[%clk 0:00:40]} 42. Rb6+ {[%clk 0:00:06]}  Kd5 {[%clk 0:00:41]} 43. Rxa6 {[%clk 0:00:06]}  Nc6 {[%clk 0:00:41]} 44. e4+ {[%clk 0:00:05]}  Kxe4 {[%clk 0:00:41]} 45. Rxc6 {[%clk 0:00:06]}  f5 {[%clk 0:00:41]} 46. Rf6 {[%clk 0:00:06]}  f4 {[%clk 0:00:42]} 47. Rf8 {[%clk 0:00:07]}  f3 {[%clk 0:00:42]} 48. c6 {[%clk 0:00:07]}  f2 {[%clk 0:00:43]} 49. c7 {[%clk 0:00:08]}  f1=Q {[%clk 0:00:44]} 50. Rxf1 {[%clk 0:00:08]}  Ke3 {[%clk 0:00:44]} 51. c8=Q {[%clk 0:00:07]}  Ke2 {[%clk 0:00:45]} 52. Qf5 {[%clk 0:00:07]}  Ke3 {[%clk 0:00:46]} 53. Qf4+ {[%clk 0:00:07]}  Ke2 {[%clk 0:00:47]} 54. Qf3# {[%clk 0:00:07]} 1-0


[Site "https://www.chess.com"]

[Event "Titled Tuesday Blitz August 22 Late 2023"]
[White "Flom, Gabriel"]
[Black "Matthew_Clarke"]
[WhiteFideId "621650"]
[WhiteElo "2474"]
[BlackElo "2248"]
[Result "1-0"]
[Round "2"]
[TimeControl "180+1"]
[Date "2023.08.22"]
[WhiteClock "0:00:35"]
[BlackClock "0:00:00"]
[Board "189"]

1. f4 {[%clk 0:02:53]}  Nf6 {[%clk 0:02:55]} 2. Nf3 {[%clk 0:02:53]}  c5 {[%clk 0:02:42]} 3. g3 {[%clk 0:02:50]}  b6 {[%clk 0:02:30]} 4. Bg2 {[%clk 0:02:50]}  Bb7 {[%clk 0:02:30]} 5. O-O {[%clk 0:02:50]}  g6 {[%clk 0:02:20]} 6. d3 {[%clk 0:02:43]}  d5 {[%clk 0:02:20]} 7. c3 {[%clk 0:02:43]}  Bg7 {[%clk 0:02:16]} 8. Nbd2 {[%clk 0:02:41]}  O-O {[%clk 0:02:13]} 9. h3 {[%clk 0:02:27]}  Nbd7 {[%clk 0:02:09]} 10. Re1 {[%clk 0:02:18]}  Re8 {[%clk 0:01:35]} 11. e4 {[%clk 0:02:12]}  dxe4 {[%clk 0:01:34]} 12. Nxe4 {[%clk 0:02:12]}  Nxe4 {[%clk 0:01:32]} 13. dxe4 {[%clk 0:02:12]}  e5 {[%clk 0:01:28]} 14. f5 {[%clk 0:02:11]}  gxf5 {[%clk 0:00:58]} 15. exf5 {[%clk 0:01:58]}  e4 {[%clk 0:00:12]} 16. Ng5 {[%clk 0:01:25]}  Nf6 {[%clk 0:00:12]} 17. h4 {[%clk 0:01:20]}  h6 {[%clk 0:00:12]} 18. Nh3 {[%clk 0:01:20]}  Qxd1 {[%clk 0:00:03]} 19. Rxd1 {[%clk 0:01:19]}  Ba6 {[%clk 0:00:02]} 20. Re1 {[%clk 0:00:43]}  Re7 {[%clk 0:00:02]} 21. Nf2 {[%clk 0:00:37]}  Rae8 {[%clk 0:00:00]} 22. Be3 {[%clk 0:00:35]} 1-0


[Site "https://www.chess.com"]